bitfinex/quotes_SOLUSD_20240825
["timestamp","ask_amount","ask_price","bid_price","bid_amount"]
[1724597635245,6.2889,159.01,158.96,6.2905]
[1724597635448,45.0,159.0,158.96,6.2905]
[1724597636056,45.0,159.0,158.97,6.2904]
[1724597637182,45.0,159.01,158.97,6.2904]
[1724597639584,45.0,159.01,158.98,6.29]
[1724597639876,45.0,159.02,158.98,6.29]
[1724597642782,51.2885,159.02,158.98,6.29]
[1724597642966,51.2885,159.02,158.97,6.2904]
[1724597643999,9.70267782,159.01,158.97,6.2904]
[1724597644185,45.0,159.0,158.97,6.2904]
[1724597645058,45.0,159.0,158.96,6.2908]
[1724597646172,51.2893,159.0,158.96,6.2908]
[1724597646476,51.2893,159.0,158.95,22.0193]
[1724597647859,51.2893,159.0,158.96,6.2908]
[1724597649261,45.0,159.0,158.96,6.2908]
[1724597650184,45.0,159.0,158.97,7.5485032]
[1724597650382,45.0,159.0,158.97,6.2904]
[1724597657359,54.70267782,159.01,158.97,6.2904]
[1724597665202,45.0,159.01,158.98,7.54797274]
[1724597665387,45.0,159.01,158.99,6.2896]
[1724597665593,45.0,159.02,158.99,7.54744003]
[1724597666288,6.233,159.05,159.01,6.2885]
[1724597666490,6.2871,159.06,159.01,6.2885]
[1724597666723,20.0,159.05,159.01,6.2885]
[1724597668213,22.3707,159.09,159.04,15.7184]
[1724597668411,6.2714,159.09,159.04,15.7184]
[1724597668601,6.2714,159.09,159.04,22.0061]
[1724597669216,6.2714,159.09,159.05,1.57361545]
[1724597669635,6.2714,159.09,159.06,1.57361545]
[1724597669797,45.0,159.08,159.04,22.0061]
[1724597669984,45.0,159.08,159.05,1.57356515]
[1724597670186,45.0,159.08,159.04,22.0061]
[1724597670419,45.0,159.08,159.05,1.57357183]
[1724597670610,45.0,159.08,159.04,22.0061]
[1724597670816,45.0,159.08,159.05,1.57359994]
[1724597671023,45.0,159.08,159.04,22.0061]
[1724597678522,45.0,159.08,159.04,15.7184]
[1724597679021,45.0,159.09,159.04,15.7184]
[1724597679199,45.0,159.09,159.05,1.25723677]
[1724597679399,45.0,159.09,159.06,6.2868]
[1724597680009,9.70267782,159.1,159.06,6.2868]
[1724597680205,6.285,159.11,159.06,6.2868]
[1724597680409,22.1843,159.13,159.03,16.1416]
[1724597680410,9.70267782,159.12,159.07,16.97345082]
[1724597680610,9.70267782,159.12,159.08,7.54285758]
[1724597681823,45.0,159.11,159.08,7.54285758]
[1724597683004,45.0,159.11,159.08,6.2858]
[1724597683200,12.3692,159.13,159.08,6.2858]
[1724597683400,22.07187782,159.13,159.08,6.2858]
[1724597684736,45.0,159.12,159.08,6.2858]
[1724597690248,6.2833,159.16,159.11,6.2849]
[1724597690423,22.7028,159.17,159.12,7.54117632]
[1724597690424,22.58437782,159.17,159.12,7.54117632]
[1724597690626,22.58437782,159.17,159.08,15.6703]
[1724597690627,9.70267782,159.17,159.13,7.54055777]
[1724597690825,15.98447782,159.19,159.14,6.2836]
[1724597691621,9.70267782,159.17,159.13,6.284]
[1724597692125,45.0,159.16,159.13,6.284]
[1724597692335,9.70267782,159.15,159.08,31.3855]
[1724597692519,9.70267782,159.13,159.08,31.3855]
[1724597692852,9.70267782,159.11,159.08,31.3855]
[1724597693225,45.0,159.1,159.08,31.3855]
[1724597693551,45.0,159.1,159.08,15.7152]
[1724597696049,6.2833,159.15,159.1,6.2853]
[1724597696255,9.70267782,159.14,159.11,6.2848]
[1724597697730,45.0,159.13,159.11,6.2848]
[1724597698656,45.0,159.13,159.1,6.2853]
[1724597698949,9.70267782,159.12,159.08,15.7152]
[1724597699153,45.0,159.11,159.08,15.7152]
[1724597700965,9.70267782,159.1,159.08,15.7152]
[1724597701147,45.0,159.09,159.08,15.7152]
[1724597702062,6.5991,159.16,159.08,15.7152]
[1724597702263,9.70267782,159.14,159.08,15.7152]
[1724597702439,9.70267782,159.14,159.1,6.2852]
[1724597703553,45.0,159.13,159.1,6.2852]
[1724597705436,9.70267782,159.12,159.08,15.7152]
[1724597705655,45.0,159.11,159.08,15.7152]
[1724597707542,45.0,159.11,159.08,22.0013]
[1724597709571,9.70267782,159.1,159.08,22.0013]
[1724597709778,9.70267782,159.13,159.08,15.7152]
[1724597710066,9.70267782,159.13,159.09,1.25690612]
[1724597710445,20.0,159.15,159.09,1.25690612]
[1724597710647,9.70267782,159.17,159.1,15.7125]
[1724597710870,6.4104,159.2,159.16,6.2829]
[1724597711077,9.70267782,159.21,159.11,1.25662716]
[1724597711253,15.98367782,159.21,159.16,6.2829]
[1724597711446,15.98367782,159.21,159.16,7.53932465]
[1724597712360,20.0,159.2,159.16,7.53932465]
[1724597712563,45.0,159.19,159.16,7.53932465]
[1724597712969,20.0,159.2,159.16,7.53932465]
[1724597714282,45.0,159.19,159.16,7.53932465]
[1724597717304,45.0,159.2,159.16,7.53932465]
[1724597722288,54.70267782,159.2,159.16,6.2829]
[1724597722490,45.0,159.2,159.12,15.7113]
[1724597722695,9.70267782,159.17,159.12,15.7113]
[1724597722899,45.0,159.16,159.12,15.7113]
[1724597723590,45.0,159.16,159.14,6.2837]
[1724597723785,6.2812,159.21,159.16,6.2826]
[1724597723993,15.98327782,159.22,159.17,7.53886556]
[1724597726626,9.70267782,159.22,159.18,6.282]
[1724597727495,45.0,159.21,159.18,6.282]
[1724597729604,45.0,159.21,159.15,15.7077]
[1724597730503,45.0,159.21,159.17,6.2824]
[1724597731805,45.0,159.21,159.18,7.53843346]
[1724597732198,45.0,159.21,159.18,6.2821]
[1724597733807,6.2802,159.23,159.18,6.2821]
[1724597733808,54.70267782,159.22,159.18,6.2821]
[1724597738325,9.70267782,159.2,159.16,22.8953]
[1724597738498,9.70267782,159.18,159.15,15.7077]
[1724597738823,45.0,159.17,159.15,15.7077]
[1724597749721,9.70267782,159.16,159.13,6.2841]
[1724597749928,9.70267782,159.16,159.14,6.2837]
[1724597750228,45.0,159.17,159.14,6.2837]
[1724597750544,45.0,159.17,159.15,6.2831]
[1724597750826,45.0,159.16,159.15,6.2831]
[1724597752738,15.4121,159.26,159.13,1.25650345]
[1724597752936,9.70267782,159.23,159.13,1.25650345]
[1724597754214,45.0,159.22,159.13,1.25650345]
[1724597754523,45.0,159.22,159.18,21.9874]
[1724597754833,21.6912,159.26,159.19,1.25628705]
[1724597755047,21.6912,159.26,159.2,6.2812]
[1724597755345,9.70267782,159.26,159.21,7.53691605]
[1724597755541,9.70267782,159.26,159.21,6.2809]
[1724597755723,12.5467,159.28,159.22,6.2805]
[1724597755916,9.70267782,159.27,159.22,6.2805]
[1724597756407,6.2782,159.28,159.23,1.25590228]
[1724597756612,9.70267782,159.29,159.23,7.53600228]
[1724597757117,9.70267782,159.29,159.24,1.25584437]
[1724597757327,9.70267782,159.29,159.23,7.53594149]
[1724597757531,6.2778,159.29,159.23,7.53594149]
[1724597757741,6.2778,159.29,159.24,1.25585568]
[1724597757920,45.0,159.28,159.24,1.25585568]
[1724597758647,9.70267782,159.31,159.25,6.2792]
[1724597758818,6.2685,159.32,159.25,6.2792]
[1724597759012,9.70267782,159.31,159.25,6.2792]
[1724597759420,9.70267782,159.29,159.25,6.2792]
[1724597759621,9.70267782,159.27,159.24,15.6991]
[1724597759839,9.70267782,159.27,159.21,6.2807]
[1724597760136,9.70267782,159.27,159.2,30.9414]
[1724597760339,45.0,159.26,159.22,6.2802]
[1724597761139,9.70267782,159.25,159.2,37.2224]
[1724597761441,45.0,159.24,159.21,6.2809]
[1724597761842,45.0,159.24,159.22,1.25602797]
[1724597762041,45.0,159.24,159.22,7.53652797]
[1724597762354,45.0,159.25,159.22,7.53652797]
[1724597763138,45.0,159.25,159.22,6.2805]
[1724597763544,45.0,159.25,159.23,7.53602627]
[1724597763734,45.0,159.25,159.23,6.2801]
[1724597769250,9.70267782,159.28,159.24,7.53568307]
[1724597769454,45.0,159.27,159.26,6.279]
[1724597770339,45.0,159.27,159.24,21.978]
[1724597770556,45.0,159.27,159.25,1.25571364]
[1724597770967,45.0,159.27,159.24,21.978]
[1724597771262,45.0,159.28,159.23,6.2801]
[1724597772658,9.70267782,159.27,159.22,6.2805]
[1724597772868,45.0,159.26,159.23,6.2802]
[1724597773637,9.70267782,159.28,159.24,6.2797]
[1724597774059,15.98017782,159.3,159.25,6.2794]
[1724597774250,15.98017782,159.3,159.26,1.25563079]
[1724597774839,45.0,159.29,159.25,6.2794]
[1724597776466,45.0,159.29,159.24,6.2797]
[1724597777734,51.278,159.29,159.24,6.2797]
[1724597778550,9.70267782,159.28,159.24,6.2797]
[1724597778757,45.0,159.27,159.24,6.2797]
[1724597779641,45.0,159.27,159.25,6.2791]
[1724597779847,6.2685,159.32,159.26,16.95333237]
[1724597780048,6.2685,159.32,159.27,1.25550133]
[1724597781545,6.2685,159.32,159.28,6.2781]
[1724597782175,15.97897782,159.33,159.28,6.2781]
[1724597782772,9.70267782,159.31,159.27,6.2786]
[1724597782974,45.0,159.3,159.27,6.2786]
[1724597783547,45.0,159.3,159.26,21.9765]
[1724597783984,6.2783,159.28,159.22,21.9807]
[1724597784281,45.0,159.3,159.22,21.9807]
[1724597784282,54.70267782,159.27,159.22,15.7005]
[1724597784976,60.98127782,159.27,159.22,21.9811]
[1724597785985,51.2786,159.27,159.22,21.9811]
[1724597789189,6.279,159.26,159.22,21.9811]
[1724597789369,45.0,159.25,159.22,21.9811]
[1724597790061,51.2795,159.25,159.18,15.7045]
[1724597791177,51.2795,159.25,159.2,6.2813]
[1724597791388,6.2803,159.23,159.18,21.9864]
[1724597791600,30.54164881,159.22,159.18,15.7045]
[1724597791805,45.0,159.21,159.18,15.7045]
[1724597794409,51.281,159.21,159.16,6.2829]
[1724597794703,6.2814,159.2,159.15,6.2833]
[1724597794880,45.0,159.19,159.15,6.2833]
[1724597796090,45.0,159.19,159.16,6.2829]
[1724597796292,45.0,159.2,159.16,6.2829]
[1724597798407,51.2814,159.2,159.15,6.2833]
[1724597798625,12.364,159.24,159.19,6.2816]
[1724597798992,6.084,159.24,159.2,7.53735746]
[1724597799888,6.2786,159.27,159.21,1.25615552]
[1724597801129,6.2786,159.27,159.2,1.25602263]
[1724597801302,45.0,159.26,159.2,1.25602263]
[1724597801504,45.0,159.26,159.22,6.2806]
[1724597802215,51.279,159.26,159.21,6.2809]
[1724597804529,6.2798,159.24,159.19,21.986]
[1724597804823,45.0,159.23,159.19,21.986]
[1724597809333,51.2802,159.23,159.19,21.986]
[1724597809530,51.2802,159.23,159.19,15.7043]
[1724597810036,9.71038527,159.22,159.18,6.2821]
[1724597810247,45.0,159.21,159.18,6.2821]
[1724597812564,45.0,159.21,159.17,15.8182]
[1724597812840,45.0,159.21,159.12,31.4211]
[1724597812841,15.99178527,159.2,159.15,6.2833]
[1724597813009,9.71038527,159.2,159.16,6.2829]
[1724597813212,45.0,159.19,159.16,6.2829]
[1724597814919,45.0,159.19,159.14,6.2836]
[1724597815118,45.0,159.19,159.15,6.283]
[1724597816048,45.0,159.19,159.16,6.2828]
[1724597819342,45.0,159.19,159.17,6.2825]
[1724597819518,45.0,159.19,159.18,6.2821]
[1724597822128,29.0195,159.23,159.15,15.7076]
[1724597822325,9.71038527,159.21,159.15,15.7076]
[1724597823450,9.71038527,159.21,159.18,6.2821]
[1724597824142,12.4891,159.23,159.18,6.2821]
[1724597824351,45.0,159.22,159.19,6.2817]
[1724597827221,45.0,159.22,159.21,6.281]
[1724597827439,15.98938527,159.26,159.21,6.281]
[1724597827646,29.1541,159.27,159.22,6.2804]
[1724597827951,38.86448527,159.27,159.22,6.2804]
[1724597829528,45.0,159.26,159.22,6.2804]
[1724597831442,54.71038527,159.26,159.22,6.2804]
[1724597832752,60.98948527,159.26,159.21,6.2809]
[1724597837235,51.2791,159.26,159.21,6.2809]
[1724597837439,9.71038527,159.25,159.21,6.2809]
[1724597837644,45.0,159.24,159.21,6.2809]
[1724597840777,45.0,159.24,159.22,6.2804]
[1724597847755,45.0,159.24,159.21,6.2809]
[1724597848062,45.0,159.24,159.2,6.2813]
[1724597850803,45.0,159.24,159.19,15.7037]
[1724597850804,45.0,159.24,159.21,6.2809]
[1724597857974,45.0,159.25,159.21,6.2809]
[1724597859278,54.71038527,159.25,159.21,6.2809]
[1724597860597,45.0,159.25,159.21,6.2809]
[1724597867919,45.0,159.25,159.2,6.281]
[1724597872118,45.0,159.25,159.21,6.2809]
[1724597872617,51.2794,159.25,159.2,6.2813]
[1724597872785,9.71038527,159.23,159.17,22.0967]
[1724597873192,45.0,159.22,159.17,22.0967]
[1724597874390,51.2809,159.22,159.17,22.0967]
[1724597877237,51.2809,159.22,159.17,6.2825]
[1724597877402,9.71038527,159.21,159.17,6.2825]
[1724597877602,45.0,159.2,159.17,6.2825]
[1724597878128,45.0,159.2,159.16,15.7071]
[1724597878129,45.0,159.2,159.14,6.2835]
[1724597878331,15.99218527,159.19,159.14,6.2835]
[1724597878630,45.0,159.18,159.14,6.2835]
[1724597879227,45.0,159.18,159.15,6.2833]
[1724597884434,45.0,159.18,159.16,6.2829]
[1724597884736,45.0,159.18,159.17,21.9889]
[1724597894051,45.0,159.18,159.17,15.7064]
[1724597895063,45.0,159.18,159.17,21.9889]
[1724597895230,6.2806,159.22,159.17,21.9889]
[1724597895430,45.0,159.21,159.17,21.9889]
[1724597897857,16.2141,159.28,159.2,15.7034]
[1724597898157,6.0855,159.3,159.23,6.2801]
[1724597898357,9.71038527,159.29,159.25,6.2794]
[1724597898531,12.363,159.3,159.25,6.2794]
[1724597899963,6.2775,159.3,159.25,6.2794]
[1724597901160,45.0,159.29,159.25,6.2794]
[1724597902862,45.0,159.29,159.25,36.2794]
[1724597903747,45.0,159.29,159.25,6.2794]
[1724597914066,51.2778,159.29,159.25,6.2794]
[1724597915076,51.2778,159.29,159.24,6.2797]
[1724597917373,51.2778,159.29,159.23,1.25583909]
[1724597917374,45.0,159.29,159.25,6.2793]
[1724597918773,51.2778,159.29,159.25,6.2793]
[1724597924259,45.0,159.29,159.25,6.2793]
[1724597924479,45.0,159.3,159.25,6.2793]
[1724597924860,45.0,159.3,159.27,6.2786]
[1724597925064,15.98678527,159.33,159.28,6.2782]
[1724597925377,30.7634,159.36,159.29,1.25550745]
[1724597925378,15.0756,159.36,159.29,1.25550745]
[1724597925579,6.2755,159.35,159.3,6.2774]
[1724597925811,15.98588527,159.35,159.3,6.2774]
[1724597926511,6.2755,159.35,159.3,6.2774]
[1724597926812,15.98588527,159.35,159.3,6.2774]
[1724597927491,45.0,159.34,159.3,6.2774]
[1724597929496,51.2759,159.34,159.29,6.2778]
[1724597932716,9.71038527,159.33,159.29,6.2778]
[1724597932919,45.0,159.32,159.29,6.2778]
[1724597933928,45.0,159.32,159.28,15.6947]
[1724597935508,51.2767,159.32,159.28,15.6947]
[1724597945936,51.2767,159.32,159.26,6.2788]
[1724597945937,6.2774,159.3,159.26,6.2788]
[1724597946334,45.0,159.29,159.26,6.2788]
[1724597948633,45.0,159.3,159.26,6.2788]
[1724597956447,45.0,159.3,159.27,6.2786]
[1724597956827,45.0,159.31,159.27,6.2786]
[1724597957434,6.5967,159.33,159.28,16.95114974]
[1724597957815,6.5967,159.33,159.28,15.6955]
[1724597958216,25.35638527,159.35,159.28,15.6955]
[1724597958446,6.2759,159.34,159.29,6.2775]
[1724597958744,45.0,159.33,159.29,6.2775]
[1724597963634,45.0,159.33,159.3,6.2774]
[1724597963829,60.98668527,159.33,159.29,6.2778]
[1724597964639,60.98668527,159.33,159.28,15.6955]
[1724597964848,6.2767,159.32,159.28,15.6955]
[1724597965053,45.0,159.31,159.28,15.6955]
[1724597966446,6.2775,159.3,159.25,6.2794]
[1724597966733,45.0,159.29,159.25,6.2794]
[1724597969631,45.0,159.29,159.25,6.2794]
[1724597969831,54.71038527,159.29,159.25,6.2794]
[1724597973358,6.2772,159.31,159.25,1.2558377]
[1724597973663,22.41898527,159.32,159.27,6.2783]
[1724597974755,45.0,159.31,159.27,6.2783]
[1724597987662,6.432,159.36,159.28,16.95052132]
[1724597987850,22.41748527,159.36,159.3,6.277]
[1724597990063,45.0,159.35,159.3,6.277]
[1724597992164,6.2746,159.38,159.31,1.25533115]
[1724597993198,6.2746,159.38,159.33,6.2759]
[1724597993768,45.0,159.37,159.33,6.2759]
[1724597995984,6.55436217,159.44,159.34,15.9743]
[1724597996292,9.71038527,159.41,159.35,1.25491452]
[1724597997269,45.0,159.4,159.35,1.25491452]
[1724597997599,45.0,159.4,159.36,6.2751]
[1724598002312,51.2737,159.4,159.35,15.6884]
[1724598002605,15.83028527,159.39,159.28,15.9743]
[1724598002778,9.71038527,159.35,159.29,30.0]
[1724598002977,6.2759,159.34,159.29,21.9723]
[1724598003191,60.98678527,159.33,159.28,22.2524]
[1724598003381,6.2768,159.32,159.28,15.9743]
[1724598003682,9.71038527,159.29,159.26,15.6974]
[1724598003896,15.98828527,159.29,159.24,15.9743]
[1724598004100,9.71038527,159.27,159.23,6.2801]
[1724598004301,6.2798,159.24,159.2,15.9743]
[1724598004608,9.71038527,159.23,159.2,15.9743]
[1724598004784,45.0,159.22,159.2,15.9743]
[1724598005110,45.0,159.22,159.19,6.2817]
[1724598005278,9.71038527,159.25,159.17,15.7057]
[1724598005483,31.3774,159.35,159.2,15.703]
[1724598005484,45.0,159.24,159.2,15.703]
[1724598005787,16.375,159.36,159.23,30.9077]
[1724598006017,9.71038527,159.34,159.25,9.71038527]
[1724598006312,6.2764,159.33,159.26,15.6968]
[1724598007500,6.2764,159.33,159.27,6.2786]
[1724598007704,45.0,159.32,159.27,6.2786]
[1724598013416,45.0,159.32,159.28,6.2781]
[1724598017212,45.0,159.32,159.27,6.2786]
[1724598019523,54.71038527,159.32,159.26,21.9757]
[1724598019728,9.71038527,159.3,159.26,21.9757]
[1724598019935,45.0,159.29,159.26,21.9757]
[1724598026028,45.0,159.29,159.26,15.6968]
[1724598035529,15.98858527,159.28,159.23,21.9801]
[1724598035717,51.2786,159.27,159.23,21.9801]
[1724598047537,51.2786,159.27,159.23,15.7002]
[1724598047844,9.71038527,159.24,159.17,6.2825]
[1724598048051,9.71038527,159.24,159.18,6.282]
[1724598048052,6.2802,159.23,159.18,6.282]
[1724598048348,6.2802,159.23,159.18,4.01465583]
[1724598048349,15.99098527,159.22,159.18,4.01465583]
[1724598048522,45.0,159.21,159.18,5.71197885]
[1724598048725,45.0,159.21,159.18,1.69732302]
[1724598048922,45.0,159.21,159.17,11.99472761]
[1724598050135,45.0,159.21,159.17,10.29728829]
[1724598052130,45.0,159.21,159.17,6.2825]
[1724598061287,15.0065,159.24,159.16,15.7072]
[1724598061587,9.71038527,159.23,159.19,6.2816]
[1724598062650,45.0,159.22,159.18,6.2821]
[1724598063587,45.0,159.22,159.17,6.2825]
[1724598066082,51.2806,159.22,159.17,6.2825]
[1724598066686,45.0,159.22,159.17,6.2825]
[1724598067974,9.71038527,159.21,159.17,6.2825]
[1724598068182,45.0,159.2,159.17,6.2825]
[1724598068979,45.0,159.2,159.17,6.0825]
[1724598069282,9.71038527,159.19,159.16,15.7072]
[1724598069660,45.0,159.18,159.16,15.7072]
[1724598070368,45.0,159.19,159.16,15.7072]
[1724598072984,6.5961,159.2,159.17,6.2825]
[1724598073166,6.2805,159.23,159.16,15.7072]
[1724598074358,9.71038527,159.22,159.16,15.7072]
[1724598074587,9.71038527,159.22,159.18,6.2821]
[1724598074789,45.0,159.21,159.18,6.2821]
[1724598084300,45.0,159.22,159.18,6.2821]
[1724598084971,6.5961,159.24,159.18,31.4104]
[1724598085170,21.9532,159.28,159.24,6.2797]
[1724598085389,6.207,159.28,159.17,16.0628]
[1724598085592,6.207,159.28,159.18,1.69689]
[1724598085980,15.98898527,159.27,159.21,6.2806]
[1724598086907,45.0,159.26,159.21,6.2806]
[1724598087471,45.0,159.26,159.22,1.57200761]
[1724598087669,45.0,159.26,159.21,6.2806]
[1724598088607,9.71038527,159.25,159.19,7.97860615]
[1724598088793,45.0,159.24,159.19,6.2814]
[1724598091301,45.0,159.24,159.19,7.978774]
[1724598093306,45.0,159.24,159.19,6.2814]
[1724598093885,9.71038527,159.23,159.18,15.7045]
[1724598094091,45.0,159.22,159.19,1.69735355]
[1724598094278,51.2808,159.22,159.19,1.69735355]
[1724598094489,15.99138527,159.21,159.16,6.2829]
[1724598094697,15.99138527,159.21,159.17,1.69777659]
[1724598094901,45.0,159.2,159.16,6.2829]
[1724598095107,45.0,159.2,159.17,1.69803011]
[1724598095410,45.0,159.2,159.14,15.7087]
[1724598095595,51.2815,159.2,159.15,7.98119631]
[1724598095795,9.71038527,159.17,159.16,1.69799631]
[1724598096002,15.91738527,159.17,159.11,1.69799631]
[1724598096306,15.91738527,159.17,159.08,16.0628]
[1724598096307,9.71038527,159.14,159.1,6.2853]
[1724598096803,45.0,159.13,159.1,6.2853]
[1724598097008,45.0,159.13,159.12,1.69913565]
[1724598097710,45.0,159.13,159.09,21.9997]
[1724598098408,45.0,159.13,159.1,6.2853]
[1724598100205,45.0,159.13,159.09,15.7142]
[1724598101125,45.0,159.13,159.09,21.9999]
[1724598102526,45.0,159.13,159.09,15.7142]
[1724598102904,51.2842,159.13,159.08,6.2861]
[1724598103310,9.71038527,159.12,159.08,6.2861]
[1724598103505,45.0,159.11,159.07,6.2865]
[1724598111023,51.2849,159.11,159.06,15.7172]
[1724598111529,45.0,159.11,159.06,22.004]
[1724598112397,9.71038527,159.1,159.06,22.004]
[1724598112615,45.0,159.09,159.06,22.004]
[1724598113825,9.71038527,159.08,159.02,15.7203]
[1724598114033,45.0,159.07,159.02,15.7203]
[1724598114530,45.0,159.07,159.02,22.0085]
[1724598116031,9.71038527,159.06,159.02,22.0085]
[1724598116215,16.17878527,159.06,159.02,22.0087]
[1724598116402,45.0,159.05,159.02,22.0087]
[1724598118041,45.0,159.05,159.02,15.7203]
[1724598118242,16.3894,159.08,159.02,15.7203]
[1724598119017,16.3894,159.08,159.04,6.2877]
[1724598119536,45.0,159.07,159.04,6.2877]
[1724598122136,45.0,159.07,159.03,6.2881]
[1724598125445,54.71038527,159.07,159.03,6.2881]
[1724598129822,9.71038527,159.05,158.99,31.4476]
[1724598130023,9.71038527,159.03,158.98,15.7244]
[1724598130316,45.0,159.02,158.98,15.7244]
[1724598130530,45.0,159.02,158.98,22.0144]
[1724598135035,15.99938527,159.01,158.95,22.0189]
[1724598135229,45.0,159.0,158.95,22.0189]
[1724598135737,45.0,159.0,158.95,15.728]
[1724598135939,6.2234,159.05,158.98,9.71038527]
[1724598136240,6.2234,159.05,158.99,1.2577431]
[1724598136950,6.2234,159.05,159.01,15.7222]
[1724598137131,6.2234,159.05,159.01,22.011]
[1724598137538,45.0,159.04,159.01,22.011]
[1724598139446,45.0,159.04,159.03,6.2881]
[1724598140258,6.2234,159.09,159.04,15.7192]
[1724598141155,6.2234,159.09,159.05,6.2872]
[1724598141359,6.55488501,159.15,159.04,15.7192]
[1724598141360,12.77828501,159.15,159.04,30.9283]
[1724598141653,9.71038527,159.11,159.04,15.7192]
[1724598142141,9.71038527,159.09,159.04,22.0068]
[1724598142850,45.0,159.08,159.04,22.0068]
[1724598150454,45.0,159.08,159.05,6.2872]
[1724598155963,45.0,159.08,159.04,22.0068]
[1724598159076,54.71038527,159.09,159.04,22.0068]
[1724598160347,45.0,159.09,159.04,15.7192]
[1724598161052,45.0,159.09,159.06,6.2868]
[1724598161477,45.0,159.1,159.06,6.2868]
[1724598163653,54.71038527,159.1,159.05,6.2872]
[1724598164462,60.99578527,159.1,159.04,22.0068]
[1724598164977,60.99578527,159.1,159.04,15.7192]
[1724598164978,9.71038527,159.08,159.04,15.7192]
[1724598165156,45.0,159.07,159.02,6.2885]
[1724598167779,45.0,159.07,159.03,6.288]
[1724598174695,45.0,159.07,159.02,6.2884]
[1724598174891,45.0,159.07,159.01,22.0107]
[1724598174892,15.99728527,159.06,159.01,22.0107]
[1724598175196,9.71038527,159.04,159.01,15.7219]
[1724598175400,45.0,159.03,159.01,15.7219]
[1724598177367,45.0,159.03,159.01,22.0107]
[1724598180176,45.0,159.03,159.0,6.2892]
[1724598180382,45.0,159.04,159.0,6.2892]
[1724598180794,45.0,159.05,159.0,6.2892]
[1724598182003,45.0,159.05,158.98,15.725]
[1724598182004,9.71038527,159.04,158.99,7.9916181]
[1724598182179,45.0,159.03,158.99,6.2896]
[1724598182380,45.0,159.03,158.98,22.015]
[1724598182911,9.71038527,159.02,158.98,22.015]
[1724598183078,45.0,159.01,158.98,22.015]
[1724598199719,45.0,159.0,158.98,22.015]
[1724598200015,54.71038527,159.02,158.98,22.015]
[1724598207434,45.0,159.02,158.99,6.2895]
[1724598207726,45.0,159.03,158.99,6.2895]
[1724598210525,45.0,159.03,158.98,15.725]
[1724598210727,9.71038527,159.07,158.99,1.2577786]
[1724598210963,9.71038527,159.07,159.0,1.70196224]
[1724598211228,9.71038527,159.07,158.99,1.2577786]
[1724598211431,6.2869,159.06,159.01,6.2887]
[1724598212120,45.0,159.05,159.01,6.2887]
[1724598215251,45.0,159.05,159.01,6.2887]
[1724598217838,12.6077,159.09,159.02,15.7205]
[1724598218025,22.31808527,159.09,159.02,15.7205]
[1724598218221,6.2853,159.1,159.04,6.2876]
[1724598218535,16.03238527,159.13,159.06,22.0037]
[1724598218944,9.71038527,159.11,159.06,22.0037]
[1724598219129,9.71038527,159.11,159.06,15.7168]
[1724598219723,45.0,159.1,159.07,1.57357446]
[1724598219928,45.0,159.1,159.06,15.7168]
[1724598222139,6.2838,159.14,159.08,6.2857]
[1724598222358,6.2842,159.13,159.07,6.2865]
[1724598222859,6.2846,159.12,159.07,6.2865]
[1724598223260,15.99498527,159.12,159.06,37.8961]
[1724598223458,45.0,159.11,159.07,1.57344527]
[1724598223635,45.0,159.11,159.06,37.8961]
[1724598223834,45.0,159.11,159.07,1.5734412]